[Event "GER-ch Youth-U18w 2023"]
[Site "Willingen"]
[Date "2023.05.28"]
[Round "1.1"]
[White "Petersen, Sophie"]
[Black "Doll, Rebecca"]
[Result "0-1"]
[Annotator "RC"]
[ECO "C45"]
[WhiteElo "1763"]
[BlackElo "1918"]
[PlyCount "35"]
[EventDate "2022.06.05"]
[EventType "swiss"]
[EventRounds "9"]
[EventCountry "GER"]
[SourceTitle "playchess.com"]
[Source "ChessBase"]
[SourceQuality "1"]
[TimeControl "40/4500+30:900+30"]

1. e4 {[%emt 0:00:00]} e5 {[%emt 0:00:00]} 2. Nf3 {[%emt 0:00:00]} Nc6 {[%emt 0:00:00]} 3. d4 {[%emt 0:00:00]} exd4 {[%emt 0:00:00]} 4. Nxd4 {[%emt 0:00:00]} Nf6 {[%emt 0:00:00]} 5. Nxc6 {[%emt 0:00:00]} bxc6 {[%emt 0:00:00]} 6. e5 {[%emt 0:00:00]} Qe7 {[%emt 0:00:00]} 7. Qe2 {[%emt 0:00:00]} Nd5 {[%emt 0:00:00]} 8. c4 {[%emt 0:00:00]} Nb6 {[%emt 0:00:00]} 9. Nc3 {[%emt 0:00:00]} Qe6 {[%emt 0:00:00]} 10. Qe4 {[%emt 0:00:00]} g6 {[%emt 0:00:00]} 11. Bd3 {[%emt 0:00:00]} Bg7 {[%emt 0:00:00]} 12. f4 {[%emt 0:00:00]} O-O {[%emt 0:00:00]} 13. O-O {[%emt 0:02:37]} f5 {[%emt 0:05:58]} 14. exf6 {[%emt 0:10:08]} Qxf6 {[%emt 0:00:07]} 15. f5 {[%emt 0:16:11]} Qd4+ {[%emt 0:35:04]} 16. Kh1 {[%emt 0:05:24]} Ba6 17. Qxd4 Bxd4 {[%emt 0:00:00]} 18. Bh6 {[%emt 0:03:20]} 0-1

[Event "GER-ch Youth-U18w 2023"]
[Site "Willingen"]
[Date "2023.05.28"]
[Round "1.2"]
[White "Heutling, Elina"]
[Black "Henninger, Claire"]
[Result "1-0"]
[Annotator "NA RC"]
[ECO "B11"]
[WhiteElo "1878"]
[BlackElo "1610"]
[PlyCount "28"]
[EventDate "2022.06.05"]
[EventType "swiss"]
[EventRounds "9"]
[EventCountry "GER"]
[SourceTitle "playchess.com"]
[Source "ChessBase"]
[SourceQuality "1"]
[TimeControl "40/4500+30:900+30"]

1. e4 {[%emt 0:00:00]} c6 {[%emt 0:00:00]} 2. Nf3 {[%emt 0:00:00]} d5 {[%emt 0:00:00]} 3. Nc3 {[%emt 0:00:00]} dxe4 {[%emt 0:00:00]} 4. Nxe4 {[%emt 0:00:00]} Nf6 {[%emt 0:00:00]} 5. Qe2 {[%emt 0:08:58]} e6 {[%emt 0:03:55]} 6. Nxf6+ {[%emt 0:07:03]} Qxf6 {[%emt 0:00:00]} 7. d4 {[%emt 0:00:00]} h6 {[%emt 0:00:00]} 8. Qe4 {[%emt 0:00:00]} Bd6 {[%emt 0:00:00]} 9. Bd3 {[%emt 0:00:00]} Nd7 {[%emt 0:06:29]} 10. O-O {[%emt 0:00:00]} Qe7 {[%emt 0:03:04]} 11. Ne5 {[%emt 0:10:01]} Nf6 {[%emt 0:32:01]} 12. Qf3 Qc7 {[%emt 0:00:00]} 13. Qe4 {[%emt 0:00:00]} Qe7 14. Qf3 Qc7 {[%emt 0:00:38]} 1-0

[Event "GER-ch Youth-U18w 2023"]
[Site "Willingen"]
[Date "2023.05.28"]
[Round "1.3"]
[White "Glowiak, Alexandra"]
[Black "Groeschel, Karoline"]
[Result "0-1"]
[Annotator "NA RC"]
[ECO "B42"]
[WhiteElo "1660"]
[BlackElo "1892"]
[PlyCount "29"]
[EventDate "2022.06.05"]
[EventType "swiss"]
[EventRounds "9"]
[EventCountry "GER"]
[SourceTitle "playchess.com"]
[Source "ChessBase"]
[SourceQuality "1"]
[TimeControl "40/4500+30:900+30"]

1. e4 {[%emt 0:00:00]} c5 {[%emt 0:00:00]} 2. Nf3 {[%emt 0:00:00]} e6 {[%emt 0:00:00]} 3. d4 {[%emt 0:00:00]} cxd4 {[%emt 0:00:00]} 4. Nxd4 {[%emt 0:00:00]} a6 {[%emt 0:00:00]} 5. Bd3 {[%emt 0:00:00]} Bc5 {[%emt 0:00:00]} 6. Nb3 {[%emt 0:00:00]} Ba7 {[%emt 0:03:11]} 7. c4 {[%emt 0:00:00]} Nc6 {[%emt 0:00:00]} 8. Nc3 {[%emt 0:00:00]} Nge7 {[%emt 0:01:28]} 9. O-O {[%emt 0:00:00]} O-O {[%emt 0:01:38]} 10. Kh1 {[%emt 0:19:13]} f5 {[%emt 0:06:02]} 11. f4 {[%emt 0:26:03]} Qc7 {[%emt 0:37:12]} 12. Bd2 Nb4 13. Be2 {[%emt 0:00:04]} Nec6 {[%emt 0:00:00]} 14. Bd3 Ne7 15. Be2 {[%emt 0:00:57]} 0-1

[Event "GER-ch Youth-U18w 2023"]
[Site "Willingen"]
[Date "2023.05.28"]
[Round "1.4"]
[White "Peglau, Mirjam"]
[Black "Zoellner, Bente"]
[Result "1-0"]
[Annotator "RC"]
[ECO "A30"]
[WhiteElo "1932"]
[BlackElo "1700"]
[PlyCount "32"]
[EventDate "2022.06.05"]
[EventType "swiss"]
[EventRounds "9"]
[EventCountry "GER"]
[SourceTitle "playchess.com"]
[Source "ChessBase"]
[SourceQuality "1"]
[TimeControl "40/4500+30:900+30"]

1. b3 {[%emt 0:00:00]} c5 {[%emt 0:00:00]} 2. Bb2 {[%emt 0:00:00]} Nc6 {[%emt 0:00:00]} 3. c4 {[%emt 0:00:00]} Nf6 {[%emt 0:00:00]} 4. Nf3 {[%emt 0:00:00]} g6 {[%emt 0:00:00]} 5. Nc3 {[%emt 0:03:19]} Bg7 {[%emt 0:10:58]} 6. Ne4 {[%emt 0:00:00]} d6 {[%emt 0:03:19]} 7. g3 {[%emt 0:05:08]} O-O {[%emt 0:00:00]} 8. Nxf6+ {[%emt 0:00:42]} exf6 {[%emt 0:00:00]} 9. Bg2 {[%emt 0:00:34]} Rb8 {[%emt 0:00:00]} 10. O-O {[%emt 0:00:37]} Be6 {[%emt 0:00:00]} 11. Qc1 {[%emt 0:05:52]} Ne5 {[%emt 0:00:00]} 12. d4 Nxf3+ {[%emt 0:03:47]} 13. Bxf3 {[%emt 0:34:16]} b5 14. cxb5 Rxb5 15. dxc5 dxc5 16. e3 {[%emt 0:03:15]} Bh3 {[%emt 0:17:15]} 1-0

[Event "GER-ch Youth-U18w 2023"]
[Site "Willingen"]
[Date "2023.05.28"]
[Round "1.5"]
[White "Derling, Charlotte"]
[Black "Reuter, Elisa"]
[Result "1/2-1/2"]
[Annotator "RC"]
[ECO "B38"]
[WhiteElo "1664"]
[BlackElo "1944"]
[PlyCount "32"]
[EventDate "2022.06.05"]
[EventType "swiss"]
[EventRounds "9"]
[EventCountry "GER"]
[SourceTitle "playchess.com"]
[Source "ChessBase"]
[SourceQuality "1"]
[TimeControl "40/4500+30:900+30"]

1. e4 {[%emt 0:00:00]} c5 {[%emt 0:00:00]} 2. Nf3 {[%emt 0:00:00]} Nc6 {[%emt 0:00:00]} 3. d4 {[%emt 0:00:00]} cxd4 {[%emt 0:00:00]} 4. Nxd4 {[%emt 0:00:00]} g6 {[%emt 0:00:00]} 5. c4 {[%emt 0:00:00]} Bg7 {[%emt 0:00:00]} 6. Be3 {[%emt 0:00:00]} Nf6 {[%emt 0:00:00]} 7. Nc3 {[%emt 0:00:00]} d6 {[%emt 0:00:00]} 8. Be2 {[%emt 0:00:00]} O-O {[%emt 0:00:00]} 9. O-O {[%emt 0:00:00]} Bd7 {[%emt 0:00:00]} 10. Nc2 {[%emt 0:00:00]} a5 {[%emt 0:00:00]} 11. Qd2 {[%emt 0:00:00]} a4 {[%emt 0:03:50]} 12. f3 {[%emt 0:05:08]} Qa5 {[%emt 0:13:15]} 13. Rab1 {[%emt 0:10:43]} Rfc8 {[%emt 0:11:21]} 14. b3 {[%emt 0:25:21]} axb3 {[%emt 0:05:59]} 15. axb3 {[%emt 0:00:32]} Be6 {[%emt 0:09:55]} 16. Ra1 {[%emt 0:08:03]} Qd8 {[%emt 0:00:34]} 1/2-1/2

[Event "GER-ch Youth-U18w 2023"]
[Site "Willingen"]
[Date "2023.05.28"]
[Round "1.6"]
[White "Buchholz, Maja Patricia"]
[Black "Dohon, Maria-Johanna"]
[Result "1-0"]
[Annotator "NA RC"]
[ECO "E60"]
[WhiteElo "1899"]
[BlackElo "1507"]
[PlyCount "80"]
[EventDate "2022.06.05"]
[EventType "swiss"]
[EventRounds "9"]
[EventCountry "GER"]
[SourceTitle "playchess.com"]
[Source "ChessBase"]
[SourceQuality "1"]
[TimeControl "40/4500+30:900+30"]

1. c4 {[%emt 0:00:00]} Nf6 {[%emt 0:00:00]} 2. g3 {[%emt 0:00:00]} g6 {[%emt 0:00:00]} 3. Bg2 {[%emt 0:00:00]} Bg7 {[%emt 0:00:00]} 4. Nc3 {[%emt 0:00:00]} O-O {[%emt 0:00:00]} 5. d4 {[%emt 0:00:00]} d6 {[%emt 0:00:00]} 6. Nf3 {[%emt 0:00:00]} c5 {[%emt 0:00:00]} 7. O-O {[%emt 0:00:00]} Nc6 {[%emt 0:00:00]} 8. e3 {[%emt 0:00:00]} cxd4 {[%emt 0:00:00]} 9. Nxd4 {[%emt 0:00:00]} Bd7 {[%emt 0:00:00]} 10. b3 {[%emt 0:00:00]} a6 {[%emt 0:02:03]} 11. Bb2 {[%emt 0:00:00]} Rc8 {[%emt 0:03:43]} 12. h3 {[%emt 0:00:39]} Qc7 {[%emt 0:11:34]} 13. Rc1 {[%emt 0:04:41]} Qb8 {[%emt 0:03:53]} 14. Re1 {[%emt 0:12:02]} Rfd8 {[%emt 0:09:55]} 15. Kh2 {[%emt 0:04:33]} e5 {[%emt 0:05:37]} 16. Nc2 {[%emt 0:23:29]} Ne7 {[%emt 0:03:24]} 17. e4 {[%emt 0:01:49]} Bh6 {[%emt 0:03:10]} 18. Ne3 {[%emt 0:05:59]} Nh5 {[%emt 0:05:54]} 19. Bf3 {[%emt 0:02:36]} Nf6 {[%emt 0:02:56]} 20. Rc2 {[%emt 0:02:44]} Be6 {[%emt 0:03:31]} 21. Rd2 {[%emt 0:03:42]} Ne8 {[%emt 0:02:16]} 22. Rd3 {[%emt 0:05:12]} f5 {[%emt 0:02:12]} 23. Re2 {[%emt 0:02:50]} Nc6 {[%emt 0:07:31]} 24. Ncd5 {[%emt 0:02:30]} b5 {[%emt 0:07:46]} 25. Bc3 {[%emt 0:04:43]} Qa7 {[%emt 0:01:46]} 26. Kg2 {[%emt 0:04:25]} Rb8 {[%emt 0:00:54]} 27. Rc2 {[%emt 0:03:10]} b4 {[%emt 0:01:18]} 28. Bb2 {[%emt 0:00:08]} a5 {[%emt 0:01:59]} 29. Rcd2 {[%emt 0:02:21]} Qf7 {[%emt 0:05:01]} 30. Rc2 {[%emt 0:00:53]} Qa7 {[%emt 0:00:11]} 31. Re2 {[%emt 0:01:08]} Qf7 {[%emt 0:00:22]} 32. Nc2 {[%emt 0:00:28]} Ne7 {[%emt 0:01:59]} 33. Nce3 {[%emt 0:00:45]} Nc6 {[%emt 0:00:19]} 34. Qa1 {[%emt 0:00:26]} Bg7 {[%emt 0:00:34]} 35. Red2 {[%emt 0:00:41]} h6 {[%emt 0:00:27]} 36. Qd1 {[%emt 0:00:26]} Kh7 {[%emt 0:00:44]} 37. exf5 {[%emt 0:00:52]} gxf5 {[%emt 0:00:30]} 38. Nf6+ {[%emt 0:00:39]} Bxf6 {[%emt 0:01:35]} 39. Bxc6 {[%emt 0:00:03]} Be7 {[%emt 0:00:56]} 40. Bxe5 {[%emt 0:00:31]} Qg6 {[%emt 0:00:52]} 1-0

[Event "GER-ch Youth-U18w 2023"]
[Site "Willingen"]
[Date "2023.05.28"]
[Round "1.7"]
[White "Hafermann, Lara"]
[Black "Wagner, Margarethe"]
[Result "0-1"]
[Annotator "NA RC"]
[ECO "B90"]
[WhiteElo "1498"]
[BlackElo "1831"]
[PlyCount "80"]
[EventDate "2022.06.05"]
[EventType "swiss"]
[EventRounds "9"]
[EventCountry "GER"]
[SourceTitle "playchess.com"]
[Source "ChessBase"]
[SourceQuality "1"]
[TimeControl "40/4500+30:900+30"]

1. e4 {[%emt 0:00:00]} c5 {[%emt 0:00:00]} 2. Nf3 {[%emt 0:00:00]} d6 {[%emt 0:00:00]} 3. d4 {[%emt 0:00:00]} cxd4 {[%emt 0:00:00]} 4. Nxd4 {[%emt 0:00:00]} Nf6 {[%emt 0:00:00]} 5. Nc3 {[%emt 0:00:00]} a6 {[%emt 0:00:00]} 6. Qf3 {[%emt 0:00:00]} g6 {[%emt 0:00:00]} 7. h3 {[%emt 0:00:00]} Bg7 {[%emt 0:00:00]} 8. Bg5 {[%emt 0:00:00]} Nbd7 {[%emt 0:00:00]} 9. O-O-O {[%emt 0:00:00]} O-O {[%emt 0:00:00]} 10. g4 {[%emt 0:00:00]} Qa5 {[%emt 0:07:58]} 11. Qe3 {[%emt 0:08:16]} Nc5 {[%emt 0:18:29]} 12. f3 {[%emt 0:17:48]} Ne6 {[%emt 0:14:19]} 13. h4 {[%emt 0:10:11]} Re8 {[%emt 0:06:37]} 14. Nb3 {[%emt 0:04:41]} Qc7 {[%emt 0:06:07]} 15. h5 {[%emt 0:05:04]} Nxg5 {[%emt 0:04:27]} 16. Qxg5 {[%emt 0:00:03]} h6 {[%emt 0:00:13]} 17. Qd2 {[%emt 0:06:37]} g5 {[%emt 0:01:15]} 18. Nd4 {[%emt 0:02:21]} e6 {[%emt 0:06:51]} 19. Nde2 {[%emt 0:13:45]} Rd8 {[%emt 0:03:17]} 20. e5 {[%emt 0:08:21]} Ne8 {[%emt 0:00:07]} 21. f4 {[%emt 0:00:06]} gxf4 {[%emt 0:02:23]} 22. Qxf4 {[%emt 0:00:10]} dxe5 {[%emt 0:01:11]} 23. Qe3 {[%emt 0:01:42]} Rxd1+ {[%emt 0:02:33]} 24. Nxd1 {[%emt 0:00:47]} Nf6 {[%emt 0:02:15]} 25. g5 {[%emt 0:00:49]} Nd5 {[%emt 0:00:51]} 26. Qg3 {[%emt 0:01:41]} e4 {[%emt 0:05:02]} 27. Qg2 {[%emt 0:00:57]} hxg5 {[%emt 0:00:52]} 28. Qxg5 {[%emt 0:00:43]} Qe7 {[%emt 0:01:34]} 29. Qg2 {[%emt 0:00:52]} Kh8 {[%emt 0:00:53]} 30. h6 {[%emt 0:01:47]} Bf6 {[%emt 0:00:09]} 31. Qxe4 {[%emt 0:00:13]} Bd7 {[%emt 0:01:09]} 32. Nec3 {[%emt 0:01:42]} Nxc3 {[%emt 0:00:02]} 33. Qxb7 {[%emt 0:01:11]} Nxa2+ {[%emt 0:01:05]} 34. Kb1 {[%emt 0:00:11]} Rd8 {[%emt 0:00:35]} 35. Kxa2 {[%emt 0:00:27]} Qc5 {[%emt 0:00:20]} 36. Bd3 {[%emt 0:00:39]} Qe5 {[%emt 0:01:05]} 37. Qxa6 {[%emt 0:01:24]} Qd5+ {[%emt 0:00:22]} 38. b3 {[%emt 0:00:23]} Ra8 {[%emt 0:00:27]} 39. Rf1 {[%emt 0:00:28]} Rxa6+ {[%emt 0:00:08]} 40. Bxa6 {[%emt 0:00:03]} Qa5+ {[%emt 0:00:07]} 0-1

[Event "GER-ch Youth-U18w 2023"]
[Site "Willingen"]
[Date "2023.05.28"]
[Round "1.8"]
[White "Kalina, Lena"]
[Black "Evering, Enna"]
[Result "0-1"]
[Annotator "NA"]
[ECO "E90"]
[WhiteElo "1776"]
[BlackElo "1548"]
[PlyCount "28"]
[EventDate "2022.06.05"]
[EventType "swiss"]
[EventRounds "9"]
[EventCountry "GER"]
[SourceTitle "playchess.com"]
[Source "ChessBase"]
[SourceQuality "1"]
[TimeControl "40/4500+30:900+30"]

1. c4 {[%emt 0:00:00]} Nf6 {[%emt 0:00:00]} 2. Nc3 {[%emt 0:00:00]} g6 {[%emt 0:00:00]} 3. Nf3 {[%emt 0:00:00]} Bg7 {[%emt 0:00:00]} 4. e4 {[%emt 0:00:00]} c5 {[%emt 0:00:00]} 5. d4 {[%emt 0:00:00]} d6 {[%emt 0:04:02]} 6. dxc5 {[%emt 0:02:41]} dxc5 {[%emt 0:01:45]} 7. Qxd8+ Kxd8 {[%emt 0:00:07]} 8. Bf4 {[%emt 0:08:15]} Nh5 {[%emt 0:07:57]} 9. Rd1+ {[%emt 0:10:44]} Nd7 {[%emt 0:07:04]} 10. Be3 {[%emt 0:07:12]} Bxc3+ {[%emt 0:05:54]} 11. bxc3 {[%emt 0:00:08]} Ke8 {[%emt 0:03:11]} 12. e5 {[%emt 0:06:57]} f6 {[%emt 0:06:13]} 13. e6 {[%emt 0:08:25]} Nb6 {[%emt 0:03:57]} 14. Bxc5 {[%emt 0:04:03]} Bxe6 {[%emt 0:00:57]} 0-1

[Event "GER-ch Youth-U18w 2023"]
[Site "Willingen"]
[Date "2023.05.28"]
[Round "1.9"]
[White "Foltin, Alica"]
[Black "Werner, Rosalie"]
[Result "1-0"]
[Annotator "NA RC"]
[ECO "B23"]
[WhiteElo "1540"]
[BlackElo "1751"]
[PlyCount "122"]
[EventDate "2022.06.05"]
[EventType "swiss"]
[EventRounds "9"]
[EventCountry "GER"]
[SourceTitle "playchess.com"]
[Source "ChessBase"]
[SourceQuality "1"]
[TimeControl "40/4500+30:900+30"]

1. e4 {[%emt 0:00:00]} c5 {[%emt 0:00:00]} 2. Nc3 {[%emt 0:00:00]} Nc6 {[%emt 0:00:00]} 3. f4 {[%emt 0:00:00]} g6 {[%emt 0:00:00]} 4. Nf3 {[%emt 0:00:00]} Bg7 {[%emt 0:00:00]} 5. Bb5 {[%emt 0:00:00]} Nd4 {[%emt 0:00:00]} 6. O-O {[%emt 0:00:00]} Nxb5 {[%emt 0:00:00]} 7. Nxb5 {[%emt 0:00:00]} d5 {[%emt 0:00:00]} 8. d3 {[%emt 0:00:00]} dxe4 {[%emt 0:01:21]} 9. dxe4 {[%emt 0:00:00]} a6 {[%emt 0:14:15]} 10. Qxd8+ Kxd8 {[%emt 0:00:07]} 11. Rd1+ {[%emt 0:00:00]} Bd7 {[%emt 0:01:18]} 12. Na3 {[%emt 0:00:00]} Kc7 {[%emt 0:20:27]} 13. Nc4 {[%emt 0:03:45]} Be6 {[%emt 0:17:12]} 14. Ne3 {[%emt 0:08:47]} Rd8 {[%emt 0:15:33]} 15. Rxd8 {[%emt 0:09:29]} Kxd8 {[%emt 0:00:04]} 16. Ng5 {[%emt 0:00:44]} h6 {[%emt 0:05:55]} 17. Nxe6+ {[%emt 0:00:29]} fxe6 {[%emt 0:00:08]} 18. e5 {[%emt 0:00:26]} g5 {[%emt 0:05:57]} 19. g3 {[%emt 0:00:27]} gxf4 {[%emt 0:00:17]} 20. gxf4 {[%emt 0:00:08]} h5 {[%emt 0:00:28]} 21. Bd2 {[%emt 0:00:31]} Kc7 {[%emt 0:01:09]} 22. Nc4 {[%emt 0:00:29]} b6 {[%emt 0:00:39]} 23. Kf2 {[%emt 0:05:27]} Nh6 {[%emt 0:00:33]} 24. Rg1 {[%emt 0:00:19]} Nf5 {[%emt 0:01:20]} 25. Rg6 {[%emt 0:00:26]} Rh6 {[%emt 0:00:22]} 26. Rg5 {[%emt 0:02:01]} Rh7 {[%emt 0:00:41]} 27. c3 {[%emt 0:01:09]} Kb7 {[%emt 0:00:39]} 28. Ne3 {[%emt 0:00:37]} Nxe3 {[%emt 0:00:31]} 29. Bxe3 {[%emt 0:00:10]} Kc6 {[%emt 0:00:31]} 30. c4 {[%emt 0:00:45]} Bf8 {[%emt 0:00:31]} 31. Kg3 {[%emt 0:00:41]} h4+ {[%emt 0:00:31]} 32. Kh3 {[%emt 0:00:26]} b5 {[%emt 0:00:27]} 33. b3 {[%emt 0:00:06]} a5 {[%emt 0:00:32]} 34. Rg4 {[%emt 0:00:16]} bxc4 {[%emt 0:00:30]} 35. bxc4 {[%emt 0:00:06]} a4 {[%emt 0:00:30]} 36. Rxh4 {[%emt 0:00:17]} Rg7 {[%emt 0:00:30]} 37. Rh8 {[%emt 0:00:53]} Rf7 {[%emt 0:00:09]} 38. Kg4 {[%emt 0:00:13]} Rf5 {[%emt 0:00:48]} 39. Rh5 {[%emt 0:01:17]} Rf7 {[%emt 0:00:22]} 40. Rg5 {[%emt 0:00:25]} Rh7 {[%emt 0:00:42]} 41. h4 {[%emt 0:15:23]} Bh6 {[%emt 0:10:10]} 42. Rg6 {[%emt 0:00:00]} Kd7 {[%emt 0:04:18]} 43. Bxc5 {[%emt 0:00:00]} Bxf4 {[%emt 0:00:43]} 44. Kxf4 {[%emt 0:00:00]} Rxh4+ {[%emt 0:00:05]} 45. Rg4 {[%emt 0:00:00]} Rh2 {[%emt 0:00:45]} 46. a3 {[%emt 0:00:00]} Re2 {[%emt 0:00:47]} 47. Rg7 {[%emt 0:00:00]} Rc2 {[%emt 0:00:25]} 48. Rxe7+ {[%emt 0:00:00]} Kc6 {[%emt 0:00:55]} 49. Bd6 {[%emt 0:00:00]} Rxc4+ {[%emt 0:00:08]} 50. Kg5 {[%emt 0:00:00]} Kd5 {[%emt 0:00:22]} 51. Ra7 {[%emt 0:00:00]} Kc6 {[%emt 0:01:45]} 52. Kf6 {[%emt 0:00:00]} Rh4 {[%emt 0:00:31]} 53. Kxe6 {[%emt 0:00:00]} Rh6+ {[%emt 0:00:23]} 54. Kf5 {[%emt 0:00:00]} Rh5+ {[%emt 0:00:20]} 55. Kg4 {[%emt 0:00:00]} Rh1 {[%emt 0:00:34]} 56. Rxa4 {[%emt 0:00:00]} Kd5 {[%emt 0:00:35]} 57. Kf5 {[%emt 0:00:00]} Rh5+ {[%emt 0:00:37]} 58. Kg6 {[%emt 0:00:00]} Rh1 {[%emt 0:00:54]} 59. Rf4 {[%emt 0:00:00]} Rg1+ {[%emt 0:00:10]} 60. Kf6 {[%emt 0:00:00]} Rh1 {[%emt 0:00:26]} 61. a4 {[%emt 0:00:00]} Ra1 {[%emt 0:00:20]} 1-0

[Event "GER-ch Youth-U18w 2023"]
[Site "Willingen"]
[Date "2023.05.28"]
[Round "1.10"]
[White "Adelhardt, Lisa"]
[Black "Gossing, Marie-Sophie"]
[Result "1-0"]
[Annotator "NA RC"]
[ECO "C42"]
[WhiteElo "1656"]
[BlackElo "1395"]
[PlyCount "22"]
[EventDate "2022.06.05"]
[EventType "swiss"]
[EventRounds "9"]
[EventCountry "GER"]
[SourceTitle "playchess.com"]
[Source "ChessBase"]
[SourceQuality "1"]
[TimeControl "40/4500+30:900+30"]

1. e4 {[%emt 0:00:00]} e5 {[%emt 0:00:00]} 2. Nf3 {[%emt 0:00:00]} Nf6 {[%emt 0:00:00]} 3. Nxe5 {[%emt 0:00:00]} d6 {[%emt 0:00:00]} 4. Nd3 {[%emt 0:00:00]} Nxe4 {[%emt 0:00:00]} 5. Qe2 {[%emt 0:00:00]} Qe7 {[%emt 0:00:00]} 6. Nf4 {[%emt 0:00:00]} Nf6 {[%emt 0:00:00]} 7. Nc3 {[%emt 0:00:00]} c6 {[%emt 0:11:29]} 8. d4 {[%emt 0:00:00]} Bf5 {[%emt 0:05:14]} 9. Qxe7+ {[%emt 0:00:00]} Bxe7 {[%emt 0:00:16]} 10. Bd3 {[%emt 0:00:00]} Bxd3 {[%emt 0:04:00]} 11. Nxd3 {[%emt 0:00:00]} O-O {[%emt 0:03:10]} 1-0

[Event "GER-ch Youth-U18w 2023"]
[Site "Willingen"]
[Date "2023.05.28"]
[Round "1.11"]
[White "Kieckbusch, Lotta"]
[Black "Albayrak, Nese Pinar"]
[Result "0-1"]
[Annotator "NA"]
[ECO "C45"]
[WhiteElo "1308"]
[BlackElo "1763"]
[PlyCount "27"]
[EventDate "2022.06.05"]
[EventType "swiss"]
[EventRounds "9"]
[EventCountry "GER"]
[SourceTitle "playchess.com"]
[Source "ChessBase"]
[SourceQuality "1"]
[TimeControl "40/4500+30:900+30"]

1. e4 {[%emt 0:00:00]} e5 {[%emt 0:00:00]} 2. Nf3 {[%emt 0:00:00]} Nc6 {[%emt 0:00:00]} 3. d4 {[%emt 0:00:00]} exd4 {[%emt 0:00:00]} 4. Nxd4 {[%emt 0:00:00]} Bc5 {[%emt 0:00:00]} 5. Be3 {[%emt 0:00:00]} Qf6 {[%emt 0:00:00]} 6. c3 {[%emt 0:00:00]} Nge7 {[%emt 0:00:00]} 7. Bc4 {[%emt 0:00:00]} O-O {[%emt 0:00:00]} 8. O-O {[%emt 0:00:00]} Ne5 {[%emt 0:00:00]} 9. Be2 {[%emt 0:00:00]} Qg6 {[%emt 0:00:00]} 10. f3 {[%emt 0:00:00]} d5 {[%emt 0:05:48]} 11. Nd2 {[%emt 0:07:11]} Bb6 {[%emt 0:22:24]} 12. Kh1 {[%emt 0:08:18]} Rd8 {[%emt 0:09:39]} 13. Qc2 {[%emt 0:22:25]} c5 {[%emt 0:04:35]} 14. Bf4 {[%emt 0:12:30]} 0-1

[Event "GER-ch Youth-U18w 2023"]
[Site "Willingen"]
[Date "2023.05.28"]
[Round "1.12"]
[White "Cordes, Jule"]
[Black "Avetyan, Manan"]
[Result "1-0"]
[Annotator "NA RC"]
[ECO "D36"]
[WhiteElo "1744"]
[BlackElo "1368"]
[PlyCount "26"]
[EventDate "2022.06.05"]
[EventType "swiss"]
[EventRounds "9"]
[EventCountry "GER"]
[SourceTitle "playchess.com"]
[Source "ChessBase"]
[SourceQuality "1"]
[TimeControl "40/4500+30:900+30"]

1. d4 {[%emt 0:00:00]} d5 {[%emt 0:00:00]} 2. c4 {[%emt 0:00:00]} e6 {[%emt 0:00:00]} 3. Nc3 {[%emt 0:00:00]} Nf6 {[%emt 0:00:00]} 4. Bg5 {[%emt 0:00:00]} Nbd7 {[%emt 0:00:00]} 5. e3 {[%emt 0:00:00]} Be7 {[%emt 0:00:00]} 6. Qc2 {[%emt 0:00:00]} O-O {[%emt 0:00:00]} 7. cxd5 exd5 {[%emt 0:00:00]} 8. Bd3 {[%emt 0:00:00]} c6 {[%emt 0:00:00]} 9. Nf3 {[%emt 0:00:00]} Re8 {[%emt 0:00:00]} 10. O-O {[%emt 0:05:28]} Nf8 {[%emt 0:03:58]} 11. Ne5 {[%emt 0:10:20]} Ng4 {[%emt 0:16:31]} 12. Bxe7 {[%emt 0:08:21]} Qxe7 {[%emt 0:02:42]} 13. Nf3 {[%emt 0:03:33]} Nh6 {[%emt 0:19:16]} 1-0

[Event "GER-ch Youth-U18w 2023"]
[Site "Willingen"]
[Date "2023.05.28"]
[Round "2.1"]
[White "Doll, Rebecca"]
[Black "Kalina, Lena"]
[Result "1-0"]
[Annotator "NA RC"]
[ECO "B90"]
[WhiteElo "1918"]
[BlackElo "1776"]
[PlyCount "42"]
[EventDate "2022.06.05"]
[EventType "swiss"]
[EventRounds "9"]
[EventCountry "GER"]
[SourceTitle "playchess.com"]
[Source "ChessBase"]
[SourceQuality "1"]
[TimeControl "40/4500+30:900+30"]

1. e4 {[%emt 0:00:00]} c5 {[%emt 0:00:00]} 2. Nf3 {[%emt 0:00:00]} d6 {[%emt 0:00:00]} 3. d4 {[%emt 0:00:00]} cxd4 {[%emt 0:00:00]} 4. Nxd4 {[%emt 0:00:00]} Nf6 {[%emt 0:00:00]} 5. Nc3 {[%emt 0:00:00]} a6 {[%emt 0:00:00]} 6. Bd3 {[%emt 0:00:00]} e5 {[%emt 0:00:59]} 7. Nde2 {[%emt 0:00:00]} Be7 {[%emt 0:08:59]} 8. O-O {[%emt 0:00:00]} O-O {[%emt 0:14:07]} 9. Ng3 {[%emt 0:00:00]} Nbd7 {[%emt 0:07:51]} 10. Nf5 {[%emt 0:10:13]} Nc5 {[%emt 0:01:33]} 11. Nxe7+ {[%emt 0:04:15]} Qxe7 {[%emt 0:00:02]} 12. Bg5 {[%emt 0:00:11]} Qe6 {[%emt 0:20:55]} 13. Bxf6 {[%emt 0:11:21]} Qxf6 {[%emt 0:00:11]} 14. Bc4 {[%emt 0:00:11]} b5 {[%emt 0:06:50]} 15. Bd5 {[%emt 0:01:51]} Rb8 {[%emt 0:00:05]} 16. a3 {[%emt 0:03:08]} Rd8 {[%emt 0:03:58]} 17. Na2 {[%emt 0:20:47]} Bb7 {[%emt 0:03:51]} 18. f3 {[%emt 0:11:05]} Qg5 {[%emt 0:03:20]} 19. Bxb7 {[%emt 0:05:01]} Rxb7 {[%emt 0:00:02]} 20. Nb4 {[%emt 0:00:21]} Rbd7 {[%emt 0:07:36]} 21. Nd5 {[%emt 0:04:13]} Ne6 {[%emt 0:00:39]} 1-0